bitfinex/quotes_SOLUSD_20240727
["timestamp","ask_amount","ask_price","bid_price","bid_amount"]
[1722086827269,17.509559,187.33,187.31,45.0]
[1722086827967,17.509559,187.33,187.31,57.35]
[1722086828142,17.509559,187.33,187.31,45.0]
[1722086828343,17.509559,187.33,187.32,13.41755163]
[1722086828974,17.509559,187.33,187.32,12.35]
[1722086829275,17.509559,187.33,187.32,13.41754149]
[1722086829480,17.509559,187.33,187.32,58.41754149]
[1722086830060,17.509559,187.33,187.27,17.14752308]
[1722086830359,17.509559,187.33,187.3,12.35]
[1722086830566,17.509559,187.33,187.31,45.0]
[1722086830862,17.509559,187.33,187.3,57.35]
[1722086831273,17.509559,187.33,187.31,12.35]
[1722086836675,17.509559,187.33,187.3,57.35]
[1722086837770,17.509559,187.33,187.3,45.0]
[1722086837976,17.509559,187.33,187.3,57.35]
[1722086839186,17.509559,187.33,187.31,12.35]
[1722086843168,17.509559,187.33,187.32,12.35]
[1722086843583,17.509559,187.33,187.31,12.35]
[1722086846799,17.509559,187.33,187.3,57.35]
[1722086847792,17.509559,187.33,187.31,12.35]
[1722086848100,17.509559,187.33,187.3,57.35]
[1722086849688,17.509559,187.33,187.31,12.35]
[1722086851303,17.509559,187.33,187.3,57.35]
[1722086854902,17.509559,187.33,187.3,45.0]
[1722086855208,17.509559,187.33,187.3,57.35]
[1722086858407,17.509559,187.33,187.31,12.35]
[1722086858908,17.509559,187.33,187.3,45.0]
[1722086859104,17.509559,187.33,187.3,57.35]
[1722086859292,17.509559,187.33,187.31,12.35]
[1722086860990,17.509559,187.33,187.32,13.4175786]
[1722086861194,17.509559,187.33,187.32,58.4175786]
[1722086862115,17.509559,187.33,187.32,57.35]
[1722086863605,17.509559,187.33,187.32,73.43]
[1722086864891,16.6343,187.45,187.32,93.77]
[1722086865198,16.6343,187.45,187.4,12.35]
[1722086865904,16.6918885,187.45,187.41,1.06703082]
[1722086866110,16.6918885,187.45,187.41,57.35]
[1722086867416,16.6918885,187.45,187.42,1.06698732]
[1722086867915,16.6918885,187.45,187.43,1.06698685]
[1722086868220,0.0575885,187.45,187.43,12.35]
[1722086869721,0.0575885,187.45,187.41,45.0]
[1722086869889,0.0575885,187.45,187.41,57.35]
[1722086870197,0.0575885,187.45,187.41,45.0]
[1722086870608,12.4075885,187.45,187.39,12.35]
[1722086870810,12.4075885,187.45,187.38,12.35]
[1722086871499,12.4075885,187.45,187.36,1.06710086]
[1722086871699,12.4075885,187.45,187.38,12.35]
[1722086871919,12.35,187.44,187.36,1.06710086]
[1722086872095,12.35,187.44,187.37,12.35]
[1722086876015,12.4075885,187.45,187.38,12.35]
[1722086876404,16.6343,187.43,187.37,12.35]
[1722086876601,16.6343,187.43,187.38,1.06726129]
[1722086877311,16.6343,187.43,187.37,12.35]
[1722086877512,16.6343,187.43,187.38,12.35]
[1722086878222,16.6343,187.43,187.39,12.35]
[1722086878940,16.6343,187.43,187.34,1.06724032]
[1722086878941,16.6343,187.43,187.41,12.35]
[1722086879119,0.0575885,187.45,187.42,12.35]
[1722086879309,0.0575885,187.45,187.41,12.35]
[1722086881431,0.0575885,187.45,187.39,12.35]
[1722086882310,12.4075885,187.45,187.38,12.35]
[1722086882511,12.4075885,187.45,187.32,1.23492046]
[1722086882512,11.45022,187.43,187.32,1.23492046]
[1722086882735,11.45022,187.43,187.36,12.35]
[1722086882736,28.9843,187.43,187.36,12.35]
[1722086883740,0.5,187.42,187.36,12.35]
[1722086883940,29.4843,187.43,187.36,12.35]
[1722086884239,12.85,187.42,187.35,12.35]
[1722086884439,16.6343,187.43,187.34,12.35]
[1722086884440,12.35,187.41,187.34,12.35]
[1722086884610,12.35,187.41,187.35,45.0]
[1722086884814,12.35,187.41,187.34,12.35]
[1722086885818,12.35,187.42,187.35,13.4174057]
[1722086886017,12.35,187.42,187.35,12.35]
[1722086886534,12.35,187.42,187.29,71.5026]
[1722086886535,16.6343,187.43,187.36,13.41740313]
[1722086886725,28.9843,187.43,187.37,12.35]
[1722086886908,16.6343,187.43,187.39,12.35]
[1722086887412,16.6343,187.43,187.4,12.35]
[1722086888334,16.6343,187.43,187.31,16.06]
[1722086888335,12.35,187.41,187.31,16.06]
[1722086888539,0.5,187.41,187.34,12.35]
[1722086889444,0.5,187.41,187.35,12.35]
[1722086889739,17.1343,187.43,187.35,12.35]
[1722086889948,12.35,187.4,187.33,12.35]
[1722086890844,6.4401,187.42,187.36,12.35]
[1722086891350,6.4401,187.42,187.34,45.0]
[1722086891520,18.7901,187.42,187.35,12.35]
[1722086891921,6.4401,187.42,187.35,12.35]
[1722086892134,6.4401,187.42,187.37,12.35]
[1722086892625,6.4401,187.42,187.38,12.35]
[1722086893147,6.4401,187.42,187.37,12.35]
[1722086894156,6.4401,187.42,187.36,12.35]
[1722086895935,18.8476885,187.42,187.35,12.35]
[1722086896344,6.4976885,187.42,187.36,12.35]
[1722086896851,6.4976885,187.42,187.3,16.06]
[1722086897149,6.4976885,187.42,187.36,12.35]
[1722086897329,6.4976885,187.42,187.37,12.35]
[1722086897518,6.4976885,187.42,187.38,12.35]
[1722086897723,0.0575885,187.42,187.39,12.35]
[1722086898148,0.0575885,187.42,187.38,12.35]
[1722086898923,0.0575885,187.42,187.39,12.35]
[1722086899342,0.0575885,187.42,187.4,12.35]
[1722086899551,0.0575885,187.42,187.41,12.35]
[1722086900047,0.0575885,187.42,187.41,57.35]
[1722086904457,0.0575885,187.42,187.41,45.0]
[1722086904656,0.0575885,187.42,187.4,12.35]
[1722086905464,0.0575885,187.42,187.39,12.35]
[1722086905640,0.0575885,187.42,187.35,387.4]
[1722086905840,0.0575885,187.42,187.38,12.35]
[1722086906562,18.7691885,187.42,187.35,399.75]
[1722086906743,32.35,187.41,187.35,387.4]
[1722086907370,20.0,187.41,187.35,399.75]
[1722086907535,20.0,187.41,187.36,12.35]
[1722086907935,6.4191885,187.42,187.38,12.35]
[1722086908142,0.0575885,187.42,187.38,12.35]
[1722086909268,0.0575885,187.42,187.37,12.35]
[1722086909461,12.4075885,187.42,187.36,12.35]
[1722086909658,12.4075885,187.42,187.35,399.75]
[1722086910079,0.0575885,187.42,187.35,12.35]
[1722086910257,0.0575885,187.42,187.37,12.35]
[1722086911350,0.0575885,187.42,187.36,12.35]
[1722086913460,12.35,187.41,187.35,12.35]
[1722086913853,12.35,187.4,187.3,1.06741397]
[1722086914073,12.35,187.4,187.33,12.35]
[1722086914575,12.35,187.4,187.34,12.35]
[1722086915281,12.35,187.38,187.27,17.12757035]
[1722086915576,12.35,187.41,187.34,12.35]
[1722086915776,12.4075885,187.42,187.35,12.35]
[1722086915980,12.4075885,187.42,187.36,12.35]
[1722086915981,0.0575885,187.42,187.36,12.35]
[1722086916481,12.4075885,187.42,187.35,12.35]
[1722086917782,0.0575885,187.42,187.35,12.35]
[1722086918081,0.0575885,187.42,187.36,12.35]
[1722086919166,12.4075885,187.42,187.35,12.35]
[1722086920587,12.35,187.4,187.33,12.35]
[1722086920774,12.35,187.4,187.34,45.0]
[1722086921863,12.35,187.38,187.28,16.06]
[1722086922080,12.35,187.38,187.31,12.35]
[1722086922368,12.35,187.38,187.32,45.0]
[1722086926263,12.4075885,187.38,187.32,45.0]
[1722086928189,12.35,187.37,187.32,45.0]
[1722086928367,12.35,187.36,187.31,45.0]
[1722086928566,12.35,187.36,187.3,45.0]
[1722086929669,15.4064,187.37,187.3,45.0]
[1722086929871,27.7564,187.37,187.3,57.35]
[1722086930570,12.35,187.36,187.3,57.35]
[1722086932307,15.4064,187.37,187.3,57.35]
[1722086932587,27.7564,187.37,187.3,57.35]
[1722086933798,15.4064,187.37,187.31,12.35]
[1722086933967,15.4064,187.37,187.32,45.0]
[1722086935885,15.4064,187.37,187.32,57.35]
[1722086936693,15.4064,187.37,187.32,45.0]
[1722086941573,15.4639885,187.37,187.32,45.0]
[1722086943804,27.8139885,187.37,187.32,45.0]
[1722086944103,15.4639885,187.37,187.31,57.35]
[1722086945103,15.4639885,187.37,187.31,45.0]
[1722086945302,27.8139885,187.37,187.31,45.0]
[1722086946505,15.4639885,187.37,187.31,57.35]
[1722086947692,27.8139885,187.37,187.31,45.0]
[1722086948508,15.4639885,187.37,187.31,57.35]
[1722086949102,0.0575885,187.37,187.35,12.35]
[1722086949291,0.0575885,187.37,187.36,58.41730707]
[1722086950686,0.0575885,187.37,187.36,57.35]
[1722086954408,0.0575885,187.37,187.32,16.06]
[1722086954599,0.0575885,187.37,187.35,12.35]
[1722086955716,0.0575885,187.37,187.36,45.0]
[1722086956907,0.0575885,187.37,187.32,12.35]
[1722086957083,0.0575885,187.37,187.35,12.35]
[1722086957288,0.0575885,187.37,187.34,12.35]
[1722086957491,0.0575885,187.37,187.33,12.35]
[1722086957790,0.0575885,187.37,187.34,12.35]
[1722086958224,0.0575885,187.37,187.35,45.0]
[1722086962320,0.0575885,187.37,187.35,57.35]
[1722086964012,0.0575885,187.37,187.36,12.35]
[1722086964321,0.0575885,187.37,187.36,57.35]
[1722086967325,0.0575885,187.37,187.36,58.41709393]
[1722086968225,18.3617,187.48,187.36,74.47709393]
[1722086968226,6.0117,187.48,187.36,74.47709393]
[1722086968412,12.35,187.49,187.42,12.35]
[1722086968613,12.35,187.48,187.41,12.35]
[1722086968927,12.35,187.43,187.36,388.63465681]
[1722086969109,20.8131483,187.5,187.38,12.35]
[1722086969298,0.8131483,187.5,187.39,13.41709447]
[1722086969504,12.35,187.47,187.41,12.35]
[1722086969824,12.35,187.47,187.36,387.4]
[1722086969825,12.35,187.47,187.39,12.35]
[1722086970126,12.35,187.45,187.39,12.35]
[1722086970325,12.35,187.45,187.4,45.0]
[1722086970698,12.35,187.45,187.39,12.35]
[1722086970924,40.8131483,187.5,187.4,12.35]
[1722086970925,12.35,187.47,187.4,12.35]
[1722086971100,12.35,187.47,187.41,45.0]
[1722086971303,12.85,187.46,187.39,12.35]
[1722086971503,12.35,187.45,187.4,45.0]
[1722086972308,12.35,187.46,187.4,45.0]
[1722086974710,41.3131483,187.5,187.4,45.0]
[1722086975033,12.35,187.46,187.4,45.0]
[1722086975425,12.35,187.45,187.39,12.35]
[1722086975607,12.35,187.44,187.37,12.35]
[1722086975814,12.35,187.44,187.38,45.0]
[1722086976325,12.35,187.44,187.38,57.35]
[1722086978429,12.35,187.45,187.38,57.35]
[1722086979133,12.35,187.46,187.39,12.35]
[1722086983651,12.35,187.47,187.4,12.35]
[1722086984443,0.5,187.49,187.4,12.35]
[1722086984651,12.35,187.47,187.4,12.35]
[1722086985643,12.35,187.48,187.41,12.35]
[1722086986047,12.35,187.48,187.42,57.35]
[1722086986240,0.5,187.47,187.42,12.35]
[1722086986427,0.5,187.47,187.41,12.35]
[1722086986628,12.85,187.47,187.4,12.35]
[1722086986953,12.85,187.47,187.41,45.0]
[1722086987146,12.35,187.47,187.41,45.0]
[1722086989946,15.156,187.51,187.41,45.0]
[1722086989947,12.35,187.48,187.41,57.35]
[1722086991342,20.0,187.51,187.42,12.35]
[1722086991544,12.35,187.49,187.42,12.35]
[1722086994357,12.35,187.49,187.41,45.0]
[1722086994358,12.35,187.5,187.43,12.35]
[1722086995269,12.35,187.49,187.42,12.35]
[1722086997565,12.35,187.48,187.41,57.35]
[1722086998754,12.35,187.48,187.41,12.35]
[1722086999559,12.35,187.49,187.42,12.35]
[1722087000246,20.0,187.51,187.43,12.35]
[1722087000551,16.3283,187.53,187.44,12.35]
[1722087000754,12.35,187.51,187.44,12.35]
[1722087001367,12.35,187.54,187.47,12.35]
[1722087001574,25.58457719,187.56,187.47,12.35]
[1722087001872,12.35,187.55,187.48,12.35]
[1722087002169,12.35,187.54,187.47,12.35]
[1722087002372,12.35,187.53,187.46,12.35]
[1722087002563,12.35,187.53,187.47,45.0]
[1722087002870,12.35,187.51,187.45,45.0]
[1722087003047,12.35,187.51,187.44,12.35]
[1722087003354,12.35,187.5,187.43,12.35]
[1722087003557,12.35,187.49,187.42,34.4274]
[1722087004247,12.35,187.5,187.43,12.35]
[1722087004554,12.35,187.5,187.44,12.35]
[1722087004761,12.35,187.51,187.44,12.35]
[1722087005148,12.35,187.52,187.45,12.35]
[1722087006266,12.35,187.5,187.42,22.0774]
[1722087006466,12.35,187.49,187.43,45.0]
[1722087006668,20.0,187.54,187.43,45.0]
[1722087006963,12.35,187.49,187.43,45.0]
[1722087007143,25.3324,187.53,187.43,45.0]
[1722087007346,12.35,187.48,187.43,45.0]
[1722087007549,12.35,187.49,187.42,34.4274]
[1722087007745,20.0,187.52,187.43,13.41700671]
[1722087007954,12.35,187.5,187.44,12.35]
[1722087009147,12.35,187.51,187.44,12.35]
[1722087009446,12.35,187.5,187.44,12.35]
[1722087010048,20.0,187.52,187.45,57.35]
[1722087010348,12.35,187.52,187.46,45.0]
[1722087010767,25.3324,187.54,187.44,12.35]
[1722087010954,20.0,187.53,187.44,12.35]
[1722087011159,5.3328,187.52,187.43,12.35]
[1722087011378,5.3325,187.53,187.44,45.0]
[1722087011564,5.3325,187.53,187.43,12.35]
[1722087012053,25.3322,187.54,187.43,12.35]
[1722087012370,20.0,187.53,187.44,12.35]
[1722087013062,25.3323,187.54,187.44,12.35]
[1722087013375,40.0,187.54,187.44,12.35]
[1722087013675,5.3326,187.53,187.43,12.35]
[1722087013856,5.3326,187.53,187.44,45.0]
[1722087014359,5.3326,187.53,187.42,22.0774]
[1722087014360,12.35,187.49,187.42,34.4274]
[1722087015573,12.35,187.49,187.43,12.35]
[1722087015759,12.35,187.5,187.43,12.35]
[1722087017066,40.0,187.54,187.44,12.35]
[1722087017067,12.35,187.51,187.44,12.35]
[1722087018465,45.3322,187.54,187.44,12.35]
[1722087018466,12.35,187.5,187.44,12.35]
[1722087019176,12.35,187.5,187.43,12.35]
[1722087020449,25.3329,187.52,187.43,12.35]
[1722087020450,12.35,187.49,187.43,12.35]
[1722087020667,12.35,187.49,187.42,34.4274]
[1722087021879,12.35,187.5,187.43,12.35]
[1722087022257,12.35,187.49,187.42,34.4274]
[1722087022475,12.35,187.5,187.43,12.35]
[1722087022872,12.35,187.5,187.44,45.0]
[1722087023256,12.35,187.51,187.44,57.35]
[1722087023882,12.35,187.5,187.42,22.0774]
[1722087024095,40.0,187.54,187.41,12.35]
[1722087024096,12.35,187.48,187.41,12.35]
[1722087025695,12.35,187.49,187.42,12.35]
[1722087026190,12.35,187.47,187.4,12.35]
[1722087026598,12.35,187.48,187.4,12.35]
[1722087026770,12.35,187.48,187.41,12.35]
[1722087026971,36.2592,187.51,187.41,12.35]
[1722087027194,12.35,187.48,187.42,57.35]
[1722087027394,12.35,187.48,187.42,12.35]
[1722087027689,6.1287,187.53,187.37,22.7467]
[1722087027690,16.2592,187.56,187.44,12.35]
[1722087027897,12.35,187.51,187.44,12.35]
[1722087028085,41.5908,187.56,187.46,12.35]
[1722087028289,12.35,187.53,187.46,12.35]
[1722087028595,41.5908,187.56,187.45,12.35]
[1722087028596,12.35,187.52,187.45,12.35]
[1722087028798,36.2592,187.56,187.46,57.35]
[1722087028999,32.35,187.55,187.48,12.35]
[1722087029201,20.0,187.59,187.5,12.35]
[1722087029386,12.35,187.57,187.5,12.35]
[1722087031100,12.35,187.53,187.46,57.35]
[1722087031985,12.35,187.54,187.47,12.35]
[1722087034079,5.3312,187.58,187.46,45.0]
[1722087034080,12.35,187.55,187.48,12.35]
[1722087034284,20.0,187.59,187.49,57.35]
[1722087034485,20.0,187.59,187.49,12.35]
[1722087034486,12.35,187.56,187.49,12.35]
[1722087034993,12.35,187.55,187.48,12.35]
[1722087038278,20.0,187.59,187.49,57.35]
[1722087038480,12.35,187.56,187.49,12.35]
[1722087038680,12.35,187.56,187.5,45.0]
[1722087039496,12.35,187.57,187.5,45.0]
[1722087040215,12.35,187.57,187.49,12.35]
[1722087041688,12.35,187.56,187.48,12.35]
[1722087042610,12.35,187.55,187.48,12.35]
[1722087043113,12.35,187.56,187.48,12.35]
[1722087043422,12.35,187.54,187.47,12.35]
[1722087044495,12.35,187.55,187.44,22.7467]
[1722087044706,12.35,187.55,187.48,12.35]
[1722087046203,12.35,187.54,187.47,12.35]
[1722087049507,12.35,187.54,187.45,45.0]
[1722087049706,12.35,187.54,187.47,12.35]
[1722087050221,20.0,187.57,187.47,12.35]
[1722087050520,12.35,187.54,187.47,12.35]
[1722087056613,12.35,187.55,187.47,12.35]
[1722087058023,12.35,187.55,187.45,45.0]
[1722087058321,12.35,187.54,187.47,12.35]
[1722087060226,12.35,187.54,187.45,45.0]
[1722087060412,12.35,187.54,187.46,12.35]
[1722087064626,12.35,187.54,187.45,45.0]
[1722087064817,12.35,187.5,187.4,22.4302]
[1722087065002,12.35,187.5,187.43,12.35]
[1722087067122,12.35,187.5,187.4,22.4302]
[1722087067328,12.35,187.47,187.4,12.35]
[1722087067512,12.35,187.46,187.4,12.35]
[1722087068527,12.35,187.47,187.4,12.35]
[1722087069126,12.35,187.45,187.35,22.4302]
[1722087069333,12.35,187.45,187.38,12.35]
[1722087069508,12.35,187.45,187.4,20.0]
[1722087070334,12.35,187.44,187.4,20.0]
[1722087070712,20.0,187.46,187.4,20.0]
[1722087070713,12.35,187.43,187.4,20.0]
[1722087070932,45.3342,187.47,187.4,20.0]
[1722087071131,12.35,187.44,187.4,20.0]
[1722087071724,12.35,187.43,187.4,20.0]
[1722087072524,12.35,187.44,187.4,20.0]
[1722087072737,20.0,187.47,187.4,20.0]
[1722087072937,20.0,187.46,187.4,20.0]
[1722087073228,12.35,187.45,187.4,20.0]
[1722087074638,12.35,187.44,187.4,20.0]
[1722087075629,20.0,187.46,187.4,20.0]
[1722087075630,12.35,187.42,187.4,20.0]
[1722087077436,25.3348,187.45,187.4,20.0]
[1722087077640,12.35,187.42,187.4,20.0]
[1722087078526,32.35,187.41,187.4,20.0]
[1722087078930,20.0,187.41,187.4,20.0]
[1722087079128,32.35,187.41,187.4,20.0]
[1722087079321,12.35,187.41,187.4,20.0]
[1722087079520,32.35,187.41,187.4,20.0]
[1722087081241,52.35,187.41,187.4,20.0]
[1722087081422,77.6858,187.41,187.4,5.22605569]
[1722087081737,77.6858,187.41,187.22,2.05609351]
[1722087081738,20.0,187.34,187.25,22.4302]
[1722087081916,12.35,187.3,187.23,12.35]
[1722087082638,12.35,187.29,187.21,22.4302]
[1722087082818,25.3386,187.32,187.21,22.4302]
[1722087082819,12.35,187.28,187.21,22.4302]
[1722087083024,12.35,187.27,187.21,22.4302]
[1722087083227,12.35,187.26,187.16,22.4302]
[1722087083420,12.35,187.24,187.18,12.35]
[1722087083617,12.35,187.24,187.16,22.4302]
[1722087083819,12.35,187.24,187.18,12.35]
[1722087084019,12.35,187.24,187.16,22.4302]
[1722087084526,12.35,187.23,187.16,34.7802]
[1722087084831,25.3402,187.26,187.16,22.4302]
[1722087084832,20.0,187.26,187.16,22.4302]
[1722087085019,12.35,187.24,187.17,12.35]
[1722087085224,20.0,187.31,187.23,12.35]
[1722087085420,37.10597964,187.35,187.2,12.35]
[1722087085421,20.0,187.3,187.2,12.35]
[1722087085635,40.3856,187.35,187.2,12.35]
[1722087085825,12.35,187.32,187.25,12.35]
[1722087086142,40.3854,187.35,187.25,12.35]
[1722087086335,12.35,187.32,187.25,12.35]
[1722087086846,12.35,187.32,187.24,12.35]
[1722087086847,32.35,187.31,187.24,12.35]
[1722087087023,32.35,187.31,187.16,38.4902]
[1722087087024,12.35,187.3,187.16,38.4902]
[1722087087224,32.35,187.29,187.22,12.35]
[1722087087626,20.0,187.29,187.18,1.06829477]
[1722087087948,20.0,187.29,187.22,12.35]
[1722087088244,12.35,187.3,187.23,12.35]
[1722087088447,20.0,187.29,187.23,12.35]
[1722087088846,12.35,187.28,187.21,12.35]
[1722087089235,20.0,187.29,187.23,12.35]
[1722087089650,12.35,187.3,187.23,12.35]
[1722087089830,20.0,187.29,187.23,12.35]
[1722087090453,32.35,187.29,187.22,12.35]
[1722087091525,12.35,187.28,187.21,12.35]
[1722087091731,12.35,187.26,187.16,22.4302]
[1722087091926,12.35,187.26,187.19,12.35]
[1722087092128,12.35,187.25,187.16,22.4302]
[1722087092338,12.35,187.24,187.17,12.35]
[1722087092950,12.35,187.23,187.16,12.35]
[1722087093252,12.35,187.22,187.15,12.35]
[1722087093825,12.35,187.24,187.17,12.35]
[1722087095532,12.35,187.24,187.12,22.89654192]
[1722087095753,12.35,187.24,187.13,45.0]
[1722087095931,12.35,187.24,187.17,12.35]
[1722087096136,12.35,187.23,187.16,12.35]
[1722087097126,35.8094,187.26,187.18,12.35]
[1722087097329,32.35,187.25,187.18,12.35]
[1722087098461,12.35,187.24,187.18,12.35]
[1722087098663,12.35,187.23,187.16,12.35]
[1722087098847,12.35,187.23,187.13,45.0]
[1722087098848,12.35,187.22,187.15,12.35]
[1722087099045,12.35,187.21,187.14,12.35]
[1722087099357,12.35,187.19,187.12,34.178]
[1722087099541,12.35,187.18,187.11,12.35]
[1722087101435,12.35,187.19,187.08,22.7896]
[1722087101647,12.35,187.19,187.12,12.35]
[1722087102463,32.35,187.2,187.12,12.35]
[1722087102658,32.35,187.2,187.13,12.35]
[1722087102871,20.0,187.19,187.09,45.0]
[1722087103047,20.0,187.19,187.13,12.35]
[1722087103245,37.6919,187.2,187.13,12.35]
[1722087103448,12.35,187.19,187.13,12.35]
[1722087103643,32.35,187.19,187.08,22.7896]
[1722087103856,32.35,187.19,187.12,12.35]
[1722087104552,12.35,187.18,187.11,12.35]
[1722087104750,12.35,187.19,187.12,12.35]
[1722087104953,12.35,187.19,187.13,12.35]
[1722087106467,32.35,187.2,187.13,12.35]
[1722087107647,12.35,187.19,187.12,12.35]
[1722087109240,20.0,187.2,187.04,21.8212]
[1722087109241,12.35,187.17,187.04,21.8212]
[1722087109446,25.3432,187.16,187.08,12.35]
[1722087109647,12.35,187.15,187.08,12.35]
[1722087111978,12.35,187.15,187.04,21.8212]
[1722087112267,20.0,187.14,187.08,12.35]
[1722087112475,12.35,187.13,187.06,12.35]
[1722087113667,12.35,187.11,187.02,0.8131483]
[1722087113970,12.35,187.1,187.04,12.35]
[1722087114174,12.35,187.1,187.03,12.35]
[1722087114371,12.35,187.12,187.05,12.35]
[1722087114576,20.0,187.14,187.06,12.35]
[1722087114754,12.35,187.13,187.02,0.8131483]
[1722087114955,20.0,187.12,187.06,12.35]
[1722087115178,12.35,187.12,187.05,12.35]
[1722087116974,20.0,187.13,187.05,12.35]
[1722087117178,32.35,187.12,187.05,12.35]
[1722087118287,32.35,187.12,187.02,0.8131483]
[1722087118479,32.35,187.12,187.05,12.35]
[1722087119573,32.35,187.12,187.03,12.35]
[1722087119574,32.35,187.11,187.03,12.35]
[1722087119765,12.35,187.1,187.03,12.35]
[1722087121560,15.1826,187.11,187.05,12.35]
[1722087121779,20.0,187.1,187.06,12.35]
[1722087122283,15.1826,187.11,187.06,12.35]
[1722087122773,20.0,187.1,187.06,12.35]
[1722087123278,20.0,187.1,187.02,0.8131483]
[1722087123279,17.6955,187.08,187.02,13.1631483]
[1722087123480,12.35,187.06,187.02,0.8131483]
[1722087123785,20.0,187.05,187.02,0.8131483]
[1722087128065,32.35,187.05,187.02,0.8131483]
[1722087128265,20.0,187.05,187.02,0.8131483]
[1722087128465,15.1826,187.11,187.04,12.35]
[1722087128692,15.1826,187.11,187.06,12.35]
[1722087129581,37.6936,187.14,187.07,12.35]
[1722087129789,20.0,187.13,187.08,12.35]
[1722087129972,20.0,187.13,187.02,13.1631483]
[1722087129973,28.6965,187.16,187.09,12.35]
[1722087130804,34.0396,187.16,187.09,12.35]
[1722087131295,20.0,187.15,187.03,46.4762]
[1722087131490,20.0,187.15,187.04,45.0]
[1722087131714,5.3436,187.14,187.04,45.0]
[1722087132002,20.0,187.15,187.04,45.0]
[1722087132178,20.0,187.2,187.06,24.73]
[1722087132378,16.3465,187.21,187.09,24.73]
[1722087132696,16.3465,187.21,187.1,45.0]
[1722087133096,21.6883,187.21,187.1,45.0]
[1722087133308,5.3424,187.19,187.06,24.73]
[1722087133586,20.0,187.2,187.07,45.0]
[1722087133791,20.0,187.19,187.07,45.0]
[1722087134194,20.0,187.18,187.07,45.0]
[1722087134497,20.0,187.16,187.03,46.4762]
[1722087134801,25.3433,187.15,187.04,45.0]
[1722087135094,20.0,187.15,187.04,45.0]
[1722087135496,20.0,187.15,187.05,1.0690127]
[1722087135697,20.0,187.15,187.04,45.0]
[1722087136370,16.3465,187.21,187.09,24.73]
[1722087136576,16.3465,187.21,187.1,46.06864083]
[1722087136797,5.56330047,187.24,187.11,22.81483775]
[1722087136983,5.56330047,187.24,187.12,69.73]
[1722087137290,5.56330047,187.24,187.13,1.06846717]
[1722087138309,20.0,187.23,187.13,1.06846717]
[1722087138986,20.0,187.23,187.12,69.73]